Workbook

Sheet Sheet1 (2)
D1: 三院区年用量汇总表
D3: 调料
A4: 序号 | B4: 品名 | C4: 参考品牌 | D4: 产品质量要求 | E4: 规格 | F4: 单位 | G4: 西溪 年用量 | H4: 湖滨 年用量 | I4: 钱塘 年用量 | J4: 合计 | K4: 单价 | L4: 合计金额 | M4: 备注
A5: =ROW(A1) -> 1 | B5: 糯米料酒 | C5: 湖羊或同档次以上 | D5: 产品保质期不得少于出厂保质期的三分之二 | E5: 350g*40包/箱 | F5: 箱 | G5: 100 | H5: 400 | I5: 300 | J5: =G5+H5+I5 -> 800 | M5: 固定单价
A6: =ROW(A2) -> 2 | B6: 味精 | C6: 西湖或同档次以上 | D6: 产品保质期不得少于出厂保质期的三分之二 | E6: 2.5kg*4包/袋 | F6: 袋 | G6: 65 | H6: 230 | I6: 200 | J6: =G6+H6+I6 -> 495 | M6: 固定单价
A7: =ROW(A3) -> 3 | B7: 麻油 | C7: 港盛或同档次以上 | D7: 产品保质期不得少于出厂保质期的三分之二 | E7: 190ml/12瓶/箱 | F7: 箱 | G7: 60 | H7: 150 | I7: 200 | J7: 410 | M7: 固定单价
A8: 4 | B8: 广西白糖 | C8: 甜源或同档次以上 | D8: 产品保质期不得少于出厂保质期的三分之二 | E8: 50㎏/袋 | F8: 袋 | G8: 25 | H8: 100 | I8: 60 | J8: 185 | M8: 固定单价
A9: 5 | B9: 蚝油 | C9: 海天或同档次以上 | D9: 产品保质期不得少于出厂保质期的三分之二 | E9: 520ml*12瓶/箱 | F9: 箱 | G9: 60 | H9: 300 | I9: 150 | J9: 510 | M9: 固定单价
A10: 6 | B10: 辣油 | C10: 港盛或同档次以上 | D10: 产品保质期不得少于出厂保质期的三分之二 | E10: 190ml*12瓶/箱 | F10: 箱 | G10: 30 | H10: 50 | I10: 100 | J10: 180 | M10: 固定单价
A11: 7 | B11: 生抽 | C11: 海天或同档次以上 | D11: 产品保质期不得少于出厂保质期的三分之二 | E11: 1.9L*6瓶/箱 | F11: 箱 | G11: 150 | H11: 330 | I11: 420 | J11: 900 | M11: 固定单价
A12: 8 | B12: 老抽王 | C12: 海天或同档次以上 | D12: 产品保质期不得少于出厂保质期的三分之二 | E12: 1.9L*6瓶/箱 | F12: 箱 | G12: 70 | H12: 150 | I12: 200 | J12: 420 | M12: 固定单价
A13: 9 | B13: 酱油 | C13: 湖羊或同档次以上 | D13: 产品保质期不得少于出厂保质期的三分之二 | E13: 400ml/包*30包/箱 | F13: 箱 | G13: 15 | H13: 50 | I13: 50 | J13: 115 | M13: 固定单价
A14: 10 | B14: 黑芝麻馅料 | C14: 早田或同档次以上 | D14: 产品保质期不得少于出厂保质期的三分之二 | E14: 5㎏/包 | F14: 包 | G14: 10 | H14: 20 | I14: 32 | J14: 62 | M14: 固定单价
A15: 11 | B15: 白钻内酯粉 | C15: 百钻或同档次以上 | D15: 产品保质期不得少于出厂保质期的三分之二 | E15: 1㎏/包 | F15: 包 | G15: 30 | H15: 20 | I15: 100 | J15: 150 | M15: 固定单价
A16: 12 | B16: 生粉 | C16: 进口风车或同档次以上 | D16: 产品保质期不得少于出厂保质期的三分之二 | E16: 20㎏/包 | F16: 包 | G16: 45 | H16: 90 | I16: 160 | J16: 295 | M16: 固定单价
A17: 13 | B17: 金酸汤调味酱 | C17: 家乐或同档次以上 | D17: 产品保质期不得少于出厂保质期的三分之二 | E17: 960g*6包/箱 | F17: 箱 | G17: 5 | H17: 20 | I17: 20 | J17: 45 | M17: 固定单价
A18: 14 | B18: 细盐 | C18: 雪涛或同档次以上 | D18: 产品保质期不得少于出厂保质期的三分之二 | E18: 500g*40包/箱 | F18: 箱 | G18: 100 | H18: 300 | I18: 300 | J18: 700 | M18: 固定单价
A19: 15 | B19: 美味鲜酱油 | C19: 厨邦或同档次以上 | D19: 产品保质期不得少于出厂保质期的三分之二 | E19: 1.68L*6桶/箱 | F19: 箱 | G19: 50 | H19: 50 | I19: 120 | J19: 220 | M19: 固定单价
A20: 16 | B20: 沙司 | C20: 妙发、梅林或同档次以上 | D20: 产品保质期不得少于出厂保质期的三分之二 | E20: 397g*24瓶/箱 | F20: 箱 | G20: 15 | H20: 50 | I20: 50 | J20: 115 | M20: 固定单价
A21: 17 | B21: 南乳汁 | C21: 咸亨及同档次以上 | D21: 产品保质期不得少于出厂保质期的三分之二 | E21: 500g*12瓶/箱 | F21: 箱 | G21: 10 | H21: 30 | I21: 50 | J21: 90 | M21: 固定单价
A22: 18 | B22: 火锅底料 | C22: 三五及同档次以上 | D22: 产品保质期不得少于出厂保质期的三分之二 | E22: 150g60包/箱 | F22: 箱 | G22: 10 | H22: 30 | I22: 20 | J22: 60 | M22: 固定单价
A23: 19 | B23: 米醋 | C23: 双鱼及同档次以上 | D23: 产品保质期不得少于出厂保质期的三分之二 | E23: 250ml*60包/箱 | F23: 箱 | G23: 50 | H23: 60 | I23: 120 | J23: 230 | M23: 固定单价
A24: 20 | B24: 白醋 | C24: 奉化或同档次以上 | D24: 产品保质期不得少于出厂保质期的三分之二 | E24: 500ml*20瓶/箱 | F24: 箱 | G24: 20 | H24: 10 | I24: 50 | J24: 80 | M24: 固定单价
A25: 21 | B25: 烹饪白酒 | C25: 四特或同档次以上 | D25: 产品保质期不得少于出厂保质期的三分之二 | E25: 500ml*12瓶/箱 | F25: 箱 | G25: 12 | H25: 15 | I25: 20 | J25: 47 | M25: 固定单价
A26: 22 | B26: 白胡椒粉 | C26: 国良或同档次以上 | D26: 产品保质期不得少于出厂保质期的三分之二 | E26: 200g*40包/箱 | F26: 箱 | G26: 15 | H26: 30 | I26: 20 | J26: 65 | M26: 固定单价
A27: 23 | B27: 红油豆瓣 | C27: 丹丹或同档次以上 | D27: 产品保质期不得少于出厂保质期的三分之二 | E27: 10㎏/箱/箱 | F27: 箱 | G27: 20 | H27: 30 | I27: 45 | J27: 95 | M27: 固定单价
A28: 24 | B28: 蒸肉粉 | C28: 国良或同档次以上 | D28: 产品保质期不得少于出厂保质期的三分之二 | E28: 45包*120g/箱 | F28: 箱 | G28: 20 | H28: 50 | I28: 50 | J28: 120 | M28: 固定单价
A29: 25 | B29: 浓缩鸡汁 | C29: 家乐或同档次以上 | D29: 产品保质期不得少于出厂保质期的三分之二 | E29: 1㎏*6瓶/箱 | F29: 箱 | G29: 8 | H29: 10 | I29: 16 | J29: 34 | M29: 固定单价
A30: 26 | B30: 鸡精 | C30: 西湖或同档次以上 | D30: 产品保质期不得少于出厂保质期的三分之二 | E30: 1kg*10包/箱 | F30: 箱 | G30: 70 | H30: 50 | I30: 180 | J30: 300 | M30: 固定单价
A31: 27 | B31: 黄豆酱 | C31: 湖羊或同档次以上 | D31: 产品保质期不得少于出厂保质期的三分之二 | E31: 225g*30盒/箱 | F31: 箱 | G31: 5 | H31: 10 | I31: 15 | J31: 30 | M31: 固定单价
A32: 28 | B32: 风味豆豉油制辣椒 | C32: 老干妈或同档次以上 | D32: 产品保质期不得少于出厂保质期的三分之二 | E32: 280g*24瓶/箱/箱 | F32: 箱 | G32: 5 | H32: 20 | I32: 15 | J32: 40 | M32: 固定单价
A33: 29 | B33: 海鲜酱 | C33: 李锦记或同档次以上 | D33: 产品保质期不得少于出厂保质期的三分之二 | E33: 240g*12瓶/箱 | F33: 箱 | G33: 12 | H33: 20 | I33: 18 | J33: 50 | M33: 固定单价
A34: 30 | B34: 香辣酱 | C34: 李锦记或同档次以上 | D34: 产品保质期不得少于出厂保质期的三分之二 | E34: 205g*12瓶/箱 | F34: 箱 | G34: 20 | H34: 60 | I34: 18 | J34: 98 | M34: 固定单价
A35: 31 | B35: 蒜蓉酱 | C35: 海天或同档次以上 | D35: 产品保质期不得少于出厂保质期的三分之二 | E35: 230ml*15瓶/箱 | F35: 箱 | G35: 8 | H35: 10 | I35: 10 | J35: 28 | M35: 固定单价
A36: 32 | B36: 蒸鱼豉油 | C36: 海天或同档次以上 | D36: 产品保质期不得少于出厂保质期的三分之二 | E36: 1.75L*6桶/箱 | F36: 箱 | G36: 8 | H36: 20 | I36: 10 | J36: 38 | M36: 固定单价
A37: 33 | B37: 藤椒油 | C37: 幺麻子或同档次以上 | D37: 产品保质期不得少于出厂保质期的三分之二 | E37: 250ml*10瓶/箱 | F37: 箱 | G37: 10 | H37: 10 | I37: 12 | J37: 32 | M37: 固定单价
A38: 34 | B38: 盐焗粉 | C38: 美味源或同档次以上 | D38: 产品保质期不得少于出厂保质期的三分之二 | E38: 250g/盒 | F38: 盒 | G38: 50 | H38: 50 | I38: 60 | J38: =G38+H38+I38 -> 160 | M38: 固定单价
A39: =ROW(A35) -> 35 | B39: 豆腐乳 | C39: 三和四美及同档次以上 | D39: 产品保质期不得少于出厂保质期的三分之二 | E39: 12瓶*500g/箱 | F39: 箱 | G39: 5 | H39: 30 | I39: 30 | J39: 65 | M39: 固定单价
A40: 36 | B40: 麻辣鲜 | C40: 王守义或同档次以上 | D40: 产品保质期不得少于出厂保质期的三分之二 | E40: 102g*48包/箱 | F40: 箱 | G40: 15 | H40: 20 | I40: 30 | J40: 65 | M40: 固定单价
A41: 37 | B41: 十三香 | C41: 王守义或同档次以上 | D41: 产品保质期不得少于出厂保质期的三分之二 | E41: 45g*100盒/箱 | F41: 箱 | G41: 10 | H41: 230 | I41: 20 | J41: 260 | M41: 固定单价
A42: 38 | B42: 黄面包糠 | C42: 百利或同档次以上 | D42: 产品保质期不得少于出厂保质期的三分之二 | E42: 750g/包 | F42: 包 | G42: 20 | H42: 30 | I42: 50 | J42: 100 | M42: 固定单价
A43: 39 | B43: 花生酱 | C43: 顶好或同档次以上 | D43: 产品保质期不得少于出厂保质期的三分之二 | E43: 200g/瓶 | F43: 瓶 | G43: 30 | H43: 20 | I43: 70 | J43: 120 | M43: 固定单价
A44: 40 | B44: 甜面酱 | C44: 六月香或同档次以上 | D44: 产品保质期不得少于出厂保质期的三分之二 | E44: 250g/瓶 | F44: 瓶 | G44: 100 | H44: 50 | I44: 150 | J44: 300 | M44: 固定单价
A45: 41 | B45: 黄灯笼椒酱 | C45: 左泉或同档次以上 | D45: 产品保质期不得少于出厂保质期的三分之二 | E45: 1kg*6桶/箱 | F45: 箱 | G45: 10 | H45: 10 | I45: 12 | J45: 32 | M45: 固定单价
A46: 42 | B46: 桶装黄豆酱 | C46: 海天或同档次以上 | D46: 产品保质期不得少于出厂保质期的三分之二 | E46: 6kg/桶 | F46: 桶 | G46: 30 | H46: 10 | I46: 45 | J46: 85 | M46: 固定单价
A47: 43 | B47: 椒盐 | C47: 味好美或同档次以上 | D47: 产品保质期不得少于出厂保质期的三分之二 | E47: 750g/瓶 | F47: 瓶 | G47: 30 | H47: 10 | I47: 60 | J47: 100 | M47: 固定单价
A48: 44 | B48: 芥末 | C48: 珍鲜达或同档次以上 | D48: 产品保质期不得少于出厂保质期的三分之二 | E48: 43g/支 | F48: 支 | G48: 10 | H48: 10 | I48: 15 | J48: 35 | M48: 固定单价
A49: 45 | B49: 咸蛋黄酱 | C49: 径山鸭牌蛋黄酱及同档次以上 | D49: 产品保质期不得少于出厂保质期的三分之二 | E49: 210g/瓶 | F49: 瓶 | G49: 20 | H49: 10 | I49: 20 | J49: 50 | M49: 固定单价
A50: 46 | B50: 咖喱粉 | C50: 国良或同档次以上 | D50: 产品保质期不得少于出厂保质期的三分之二 | E50: 200g/包 | F50: 包 | G50: 30 | H50: 30 | I50: 40 | J50: 100 | M50: 固定单价
A51: 47 | B51: 孜然粉 | C51: 国良或同档次以上 | D51: 产品保质期不得少于出厂保质期的三分之二 | E51: 200g/包 | F51: 包 | G51: 100 | H51: 30 | I51: 120 | J51: 250 | M51: 固定单价
A52: 48 | B52: 酥肉粉 | C52: 国良或同档次以上 | D52: 产品保质期不得少于出厂保质期的三分之二 | E52: 100g/包 | F52: 包 | G52: 100 | H52: 100 | I52: 100 | J52: 300 | M52: 固定单价
A53: 49 | B53: XO酱 | C53: 李锦记或同档次以上 | D53: 产品保质期不得少于出厂保质期的三分之二 | E53: 80g/瓶 | F53: 瓶 | G53: 20 | H53: 20 | I53: 50 | J53: 90 | M53: 固定单价
A54: 50 | B54: 吉士粉 | C54: 雄狮牌或同档次以上 | D54: 产品保质期不得少于出厂保质期的三分之二 | E54: 3kg/桶 | F54: 桶 | G54: 20 | H54: 10 | I54: 35 | J54: 65 | M54: 固定单价
A55: 51 | B55: 日式油醋汁 | C55: 丘比或同档次以上 | D55: 产品保质期不得少于出厂保质期的三分之二 | E55: 1.5L/瓶 | F55: 瓶 | G55: 60 | H55: 30 | I55: 70 | J55: 160 | M55: 固定单价
A56: 52 | B56: 千岛酱 | C56: 丘比或同档次以上 | D56: 产品保质期不得少于出厂保质期的三分之二 | E56: 1.1Kg/瓶 | F56: 瓶 | G56: 20 | H56: 30 | I56: 100 | J56: 150 | M56: 固定单价
A57: 53 | B57: 芝麻沙拉酱 | C57: 丘比或同档次以上 | D57: 产品保质期不得少于出厂保质期的三分之二 | E57: 1.5L/瓶 | F57: 瓶 | G57: 30 | H57: 30 | I57: 100 | J57: 160 | M57: 固定单价
A58: 54 | B58: 沙拉酱【甜口味】 | C58: 丘比或同档次以上 | D58: 产品保质期不得少于出厂保质期的三分之二 | E58: 1.0L/瓶 | F58: 瓶 | G58: 40 | H58: 150 | I58: 120 | J58: 310 | M58: 固定单价
A59: 55 | B59: 小米辣 | C59: 宝飞或同档次以上 | D59: 产品保质期不得少于出厂保质期的三分之二 | E59: 2kg*6包/箱 | F59: 箱 | G59: 15 | H59: 30 | I59: 40 | J59: 85 | M59: 固定单价
A60: 56 | B60: 精制剁椒酱 | C60: 宝飞或同档次以上 | D60: 产品保质期不得少于出厂保质期的三分之二 | E60: 1kg*6瓶/箱 | F60: 箱 | G60: 20 | H60: 30 | I60: 50 | J60: 100 | M60: 固定单价
A61: 57 | B61: 泰国木薯粉 | C61: 水妈妈或同档次以上或同档次以上 | D61: 产品保质期不得少于出厂保质期的三分之二 | E61: 500g*20包/箱 | F61: 箱 | G61: 2 | H61: 5 | I61: 8 | J61: 15 | M61: 固定单价
A62: 58 | B62: 豆豉 | C62: 江阳或同档次以上 | D62: 产品保质期不得少于出厂保质期的三分之二 | E62: 60g*60包/箱 | F62: 箱 | G62: 12 | H62: 30 | I62: 20 | J62: 62 | M62: 固定单价
A63: 59 | B63: 香料包 | C63: 卞师傅或同档次以上 | D63: 产品保质期不得少于出厂保质期的三分之二 | E63: 20个/板 | F63: 板 | G63: 5 | H63: 20 | I63: 10 | J63: 35 | M63: 固定单价
A64: 60 | B64: 火腿肠 | C64: 王中王或同档次以上 | D64: 产品保质期不得少于出厂保质期的三分之二 | E64: 35g*70支/箱 | F64: 箱 | G64: 3 | H64: 10 | I64: 10 | J64: 23 | M64: 固定单价
A65: 61 | B65: 紫菜袋料包 | C65: 贝仙或同档次以上 | D65: 产品保质期不得少于出厂保质期的三分之二 | E65: 120包*10g/箱 | F65: 箱 | G65: 2 | H65: 20 | I65: 8 | J65: 30 | M65: 固定单价
A66: 62 | B66: 叉烧酱 | C66: 李锦记或同档次以上 | D66: 产品保质期不得少于出厂保质期的三分之二 | E66: 240g*12瓶/箱 | F66: 箱 | G66: 8 | H66: 10 | I66: 25 | J66: 43 | M66: 固定单价
A67: 63 | B67: 香糟卤 | C67: 咸亨或同档次以上 | D67: 产品保质期不得少于出厂保质期的三分之二 | E67: 500ml*12瓶/箱 | F67: 箱 | G67: 5 | H67: 10 | I67: 16 | J67: 31 | M67: 固定单价
A68: 64 | B68: 纯芝麻油 | C68: 御膳或同档次以上 | D68: 产品保质期不得少于出厂保质期的三分之二 | E68: 450ml*12瓶/箱 | F68: 箱 | G68: 8 | H68: 10 | I68: 25 | J68: 43 | M68: 固定单价
A69: 65 | B69: 香菇酱 | C69: 惠厨乐或同档次以上 | D69: 产品保质期不得少于出厂保质期的三分之二 | E69: 5kg/桶 | F69: 桶 | G69: 20 | H69: 20 | I69: 60 | J69: 100 | M69: 固定单价
A70: 66 | B70: 牛肉酱 | C70: 惠厨乐或同档次以上 | D70: 产品保质期不得少于出厂保质期的三分之二 | E70: 6.5kg/桶 | F70: 桶 | G70: 20 | H70: 20 | I70: 60 | J70: 100 | M70: 固定单价
A71: 67 | B71: 绵白糖 | C71: 福源或同档次以上 | D71: 产品保质期不得少于出厂保质期的三分之二 | E71: 50kg/包 | F71: 包 | G71: 10 | H71: 10 | I71: 25 | J71: 45 | M71: 固定单价
A72: 68 | B72: 草菇老抽 | C72: 海天或同档次以上 | D72: 产品保质期不得少于出厂保质期的三分之二 | E72: 1.9L*6桶/箱 | F72: 箱 | G72: 20 | H72: 30 | I72: 60 | J72: 110 | M72: 固定单价
A73: 69 | B73: 花生酱 | C73: 惠厨乐或同档次以上 | D73: 产品保质期不得少于出厂保质期的三分之二 | E73: 14kg/桶 | F73: 桶 | G73: 10 | H73: 10 | I73: 30 | J73: 50 | M73: 固定单价
A74: 70 | B74: 排骨酱 | C74: 海天或同档次以上 | D74: 产品保质期不得少于出厂保质期的三分之二 | E74: 260g*15瓶/箱 | F74: 箱 | G74: 5 | H74: 5 | I74: 12 | J74: 22 | M74: 固定单价
A75: =ROW(A71) -> 71 | B75: 排骨酱 | C75: 海天或同档次以上 | D75: 产品保质期不得少于出厂保质期的三分之二 | E75: 7kg*2桶/箱 | F75: 箱 | G75: 30 | H75: 30 | I75: 70 | J75: 130 | M75: 固定单价
A76: 72 | B76: 海鲜酱 | C76: 海天或同档次以上 | D76: 产品保质期不得少于出厂保质期的三分之二 | E76: 7kg*2桶/箱 | F76: 想 | G76: 25 | H76: 10 | I76: 30 | J76: 65 | M76: 固定单价
A77: 73 | B77: 番茄酱 | C77: 凤球唛或同档次以上 | D77: 产品保质期不得少于出厂保质期的三分之二 | E77: 850g*12罐/箱 | F77: 箱 | G77: 10 | H77: 10 | I77: 15 | J77: 35 | M77: 固定单价
A78: 74 | B78: 海南黄灯笼辣椒酱 | C78: 健裕或同档次以上 | D78: 产品保质期不得少于出厂保质期的三分之二 | E78: 700g*12瓶/箱 | F78: 箱 | G78: 10 | H78: 10 | I78: 15 | J78: 35 | M78: 固定单价
A79: 75 | B79: 奥尔良腌制料 | C79: 肴厨或同档次以上 | D79: 产品保质期不得少于出厂保质期的三分之二 | E79: 1kg/包 | F79: 包 | G79: 30 | H79: 50 | I79: 40 | J79: 120
A80: 76 | B80: 山西老陈醋 | C80: 晋霸或同档次以上 | D80: 产品保质期不得少于出厂保质期的三分之二 | E80: 5L/桶 | F80: 桶 | G80: 20 | H80: 20 | I80: 20 | J80: =G80+H80+I80 -> 60 | M80: 固定单价
A81: 77 | B81: 黄油 | C81: 安佳或同档次以上 | D81: 产品保质期不得少于出厂保质期的三分之二 | E81: 227g/块 | F81: 块 | G81: 70 | H81: 70 | I81: 100 | J81: 240 | M81: 固定单价
A82: 78 | B82: 桶装耗油 | C82: 海天或同档次以上 | D82: 产品保质期不得少于出厂保质期的三分之二 | E82: 6kg*2桶/箱 | F82: 箱 | G82: 70 | H82: 50 | I82: 100 | J82: 220 | M82: 固定单价
A83: 79 | B83: 炼乳 | C83: 熊猫或同档次以上 | D83: 产品保质期不得少于出厂保质期的三分之二 | E83: 350g/罐 | F83: 罐 | G83: 100 | H83: 100 | I83: 120 | J83: 320 | M83: 固定单价
A84: 80 | B84: 椰浆 | C84: 金牌高达或同档次以上 | D84: 产品保质期不得少于出厂保质期的三分之二 | E84: 175ml/罐 | F84: 罐 | G84: 100 | H84: 80 | I84: 100 | J84: 280 | M84: 固定单价
A85: 81 | B85: 雀巢奶粉 | C85: 雀巢或同档次以上 | D85: 产品保质期不得少于出厂保质期的三分之二 | E85: 500g/包 | F85: 包 | G85: 50 | H85: 60 | I85: 70 | J85: 180 | M85: 固定单价
A86: 82 | B86: 菠萝罐头 | D86: 产品保质期不得少于出厂保质期的三分之二 | F86: 箱 | G86: 10 | H86: 10 | I86: 12 | J86: 32 | M86: 固定单价
A87: 83 | B87: 雀巢淡奶油 | C87: 雀巢或同档次以上 | D87: 产品保质期不得少于出厂保质期的三分之二 | E87: 1l/盒 | F87: 盒 | G87: 70 | H87: 100 | I87: 110 | J87: 280 | M87: 固定单价
A88: 84 | B88: 三花植物淡奶 | C88: 雀巢或同档次以上 | D88: 产品保质期不得少于出厂保质期的三分之二 | E88: 410ml/罐 | F88: 罐 | G88: 200 | H88: 100 | I88: 150 | J88: 450 | M88: 固定单价
A89: 85 | B89: 黄奶油 | C89: 车轮牌或同档次以上 | D89: 产品保质期不得少于出厂保质期的三分之二 | E89: 16kg/桶 | F89: 桶 | G89: 15 | H89: 10 | I89: 25 | J89: 50 | M89: 固定单价
A91: 饮料类
A92: 序号 | B92: 品名 | C92: 参考品牌 | D92: 产品质量要求 | E92: 规格 | F92: 单位 | G92: 西溪 年用量 | H92: 湖滨 年用量 | I92: 钱塘 年用量 | J92: 暂定年用量 | K92: 单价 | L92: 合计金额 | M92: 备注
A93: 1 | B93: 茶π | C93: 农夫山泉或同档次以上 | D93: 产品保质期不得少于出厂保质期的三分之二 | E93: 500ml/瓶 | F93: 瓶 | G93: 1200 | H93: 2000 | I93: 2200 | J93: =G93+H93+I93 -> 5400 | M93: 固定单价
A94: 2 | B94: 雪碧（大） | C94: 可口可乐或同档次以上 | D94: 产品保质期不得少于出厂保质期的三分之二 | E94: 2L*6瓶/瓶 | F94: 瓶 | G94: 50 | H94: 100 | I94: 120 | J94: 270 | M94: 固定单价
A95: 3 | B95: 雪碧 | C95: 可口可乐或同档次以上 | D95: 产品保质期不得少于出厂保质期的三分之二 | E95: 500ml/瓶 | F95: 瓶 | G95: 1500 | H95: 1500 | I95: 1500 | J95: 4500 | M95: 固定单价
A96: 4 | B96: 芬达 | C96: 可口可乐或同档次以上 | D96: 产品保质期不得少于出厂保质期的三分之二 | E96: 330ml/听 | F96: 听 | G96: 500 | H96: 200 | I96: 300 | J96: 1000
A97: 5 | B97: 果粒橙（大） | C97: 美汁源或同档次以上 | D97: 产品保质期不得少于出厂保质期的三分之二 | E97: 1.25L/瓶 | F97: 瓶 | G97: 80 | H97: 100 | I97: 100 | J97: 280 | M97: 固定单价
A98: 6 | B98: 果粒橙 | C98: 美汁源或同档次以上 | D98: 产品保质期不得少于出厂保质期的三分之二 | E98: 450ml/瓶 | F98: 瓶 | G98: 2000 | H98: 2000 | I98: 2000 | J98: 6000 | M98: 固定单价
A99: 7 | B99: 可口可乐 | C99: 可口可乐或同档次以上 | D99: 产品保质期不得少于出厂保质期的三分之二 | E99: 500ml/瓶 | F99: 瓶 | G99: 1500 | H99: 5000 | I99: 4000 | J99: 10500 | M99: 固定单价
A100: 8 | B100: 无糖可乐 | C100: 可口可乐或同档次以上 | D100: 产品保质期不得少于出厂保质期的三分之二 | E100: 330ml/瓶 | F100: 听 | G100: 1200 | H100: 100 | I100: 200 | J100: 1500 | M100: 固定单价
A101: 9 | B101: 可口可乐（大） | C101: 可口可乐或同档次以上 | D101: 产品保质期不得少于出厂保质期的三分之二 | E101: 2L/瓶 | F101: 瓶 | G101: 50 | H101: 5000 | I101: 5000 | J101: 10050 | M101: 固定单价
A102: 10 | B102: 水动乐 | C102: 可口可乐或同档次以上 | D102: 产品保质期不得少于出厂保质期的三分之二 | E102: 600ml/瓶 | F102: 瓶 | G102: 3000 | H102: 5000 | I102: 5000 | J102: 13000
A103: 11 | B103: 魔爪无糖饮料 | C103: 可口可乐或同档次以上 | D103: 产品保质期不得少于出厂保质期的三分之二 | E103: 330ml/罐 | F103: 罐 | G103: 1500 | H103: 3000 | I103: 3000 | J103: 7500
A104: 12 | B104: 阳光果味茶饮料 | C104: 可口可乐或同档次以上 | D104: 产品保质期不得少于出厂保质期的三分之二 | E104: 500ml/瓶 | F104: 瓶 | G104: 2000 | H104: 3000 | I104: 3000 | J104: 8000
A105: 13 | B105: 维生素功能饮料 | C105: 红牛或档次以上 | D105: 产品保质期不得少于出厂保质期的三分之二 | E105: 250ml/瓶 | F105: 瓶 | G105: 500 | H105: 1000 | I105: 800 | J105: 2300 | M105: 固定单价
A106: 14 | B106: 活性维生素水 | C106: 激活或同档次以上 | D106: 产品保质期不得少于出厂保质期的三分之二 | E106: 600ml/瓶 | F106: 瓶 | G106: 900 | H106: 1000 | I106: 800 | J106: 2700 | M106: 固定单价
A107: 15 | B107: 冰红茶 | C107: 康师傅或同档次以上 | D107: 产品保质期不得少于出厂保质期的三分之二 | E107: 550ml/瓶 | F107: 瓶 | G107: 800 | H107: 1000 | I107: 1000 | J107: 2800 | M107: 固定单价
A108: 16 | B108: 茉莉花茶 | C108: 康师傅或同档次以上 | D108: 产品保质期不得少于出厂保质期的三分之二 | E108: 500ml/瓶 | F108: 瓶 | G108: 500 | H108: 1000 | I108: 1000 | J108: 2500
A109: 17 | B109: 绿茶 | C109: 康师傅或同档次以上 | D109: 产品保质期不得少于出厂保质期的三分之二 | E109: 550ml/瓶 | F109: 瓶 | G109: 800 | H109: 1000 | I109: 1000 | J109: =G109+H109+I109 -> 2800 | M109: 固定单价
A110: 18 | B110: 维生素饮料 | C110: 脉动或同档次以上 | D110: 产品保质期不得少于出厂保质期的三分之二 | E110: 600ml/瓶 | F110: 瓶 | G110: 1200 | H110: 2000 | I110: 1800 | J110: 5000 | M110: 固定单价
A111: 19 | B111: 混合果汁饮料 | C111: 农夫山泉或同档次以上 | D111: 产品保质期不得少于出厂保质期的三分之二 | E111: 500ml/瓶 | F111: 瓶 | G111: 500 | H111: 1000 | I111: 1000 | J111: 2500 | M111: 固定单价
A112: 20 | B112: 矿泉水（550ml） | C112: 农夫山泉或同档次以上 | D112: 产品保质期不得少于出厂保质期的三分之二 | E112: 550ml/瓶 | F112: 瓶 | G112: 15000 | H112: 30000 | I112: 32000 | J112: 77000 | M112: 固定单价
A113: 21 | B113: 矿泉水（380ml） | C113: 农夫山泉或同档次以上 | D113: 产品保质期不得少于出厂保质期的三分之二 | E113: 380ml/瓶 | F113: 瓶 | G113: 1000 | H113: 1000 | I113: 1000 | J113: 3000 | M113: 固定单价
A114: 22 | B114: 矿泉水(570ml) | C114: 百岁山或同档次以上 | D114: 产品保质期不得少于出厂保质期的三分之二 | E114: 570ml/瓶 | F114: 瓶 | G114: 4500 | H114: 2000 | I114: 3000 | J114: 9500 | M114: 固定单价
A115: 23 | B115: 咖啡 | C115: 雀巢或同档次以上 | D115: 产品保质期不得少于出厂保质期的三分之二 | E115: 268ml/瓶 | F115: 瓶 | G115: 700 | H115: 800 | I115: 800 | J115: 2300 | M115: 固定单价
A116: 24 | B116: 雀巢茶萃 | C116: 雀巢或同档次以上 | D116: 产品保质期不得少于出厂保质期的三分之二 | E116: 500ml/瓶 | F116: 瓶 | G116: 1000 | H116: 1500 | I116: 1500 | J116: 4000
A117: 25 | B117: 水溶C | C117: 农夫山泉或同档次以上 | D117: 产品保质期不得少于出厂保质期的三分之二 | E117: 445ml/瓶 | F117: 瓶 | G117: 1200 | H117: 3000 | I117: 3000 | J117: 7200 | M117: 固定单价
A118: 26 | B118: 八宝粥 | C118: 娃哈哈或同档次以上 | D118: 产品保质期不得少于出厂保质期的三分之二 | E118: 360g/罐 | F118: 罐 | G118: 500 | H118: 2000 | I118: 2000 | J118: 4500 | M118: 固定单价
A119: 27 | B119: 灭菌调味牛乳 | C119: 旺仔或同档次以上 | D119: 产品保质期不得少于出厂保质期的三分之二 | E119: 245ml/罐 | F119: 罐 | G119: 500 | H119: 1300 | I119: 1300 | J119: 3100 | M119: 固定单价
A120: 28 | B120: 东方树叶 | C120: 农夫山泉或同档次以上 | D120: 产品保质期不得少于出厂保质期的三分之二 | E120: 500ml/瓶 | F120: 瓶 | G120: 1500 | H120: 1500 | I120: 1500 | J120: 4500 | M120: 固定单价
A121: 29 | B121: 活性乳酸菌 | C121: 味全或同档次以上 | D121: 产品保质期不得少于出厂保质期的三分之二 | E121: 435ml/瓶 | F121: 瓶 | G121: 1500 | H121: 1500 | I121: 1800 | J121: 4800 | M121: 固定单价
A122: 30 | B122: 冷泡茶 | C122: 小茗同学或同档次以上 | D122: 产品保质期不得少于出厂保质期的三分之二 | E122: 480ml/瓶 | F122: 瓶 | G122: 500 | H122: 500 | I122: 500 | J122: 1500 | M122: 固定单价
A123: 31 | B123: 椰汁铁罐 | C123: 椰树或同档次以上 | D123: 产品保质期不得少于出厂保质期的三分之二 | E123: 245ml/瓶 | F123: 瓶 | G123: 1000 | H123: 1500 | I123: 1200 | J123: 3700 | M123: 固定单价
A124: 32 | B124: 营养快线 | C124: 娃哈哈或同档次以上 | D124: 产品保质期不得少于出厂保质期的三分之二 | E124: 500ml/瓶 | F124: 瓶 | G124: 1200 | H124: 1500 | I124: 1500 | J124: 4200 | M124: 固定单价
A125: 33 | B125: 乌龙茶 | C125: 三得利或同档次以上 | D125: 产品保质期不得少于出厂保质期的三分之二 | E125: 500ml/瓶 | F125: 瓶 | G125: 1800 | H125: 2000 | I125: 1500 | J125: 5300 | M125: 固定单价
A126: 34 | B126: 凉茶饮料 | C126: 王老吉或同档次以上 | D126: 产品保质期不得少于出厂保质期的三分之二 | E126: 310ml/听 | F126: 听 | G126: 500 | H126: 800 | I126: 1000 | J126: 2300 | M126: 固定单价
A127: 35 | B127: 纯净水 | C127: 娃哈哈或同档次以上 | D127: 产品保质期不得少于出厂保质期的三分之二 | E127: 596ml/瓶 | F127: 瓶 | G127: 30000 | H127: 30000 | I127: 30000 | J127: 90000 | M127: 固定单价
A128: 36 | B128: 茉莉花茶 | C128: 娃哈哈或同档次以上 | D128: 产品保质期不得少于出厂保质期的三分之二 | E128: 500ml/瓶 | F128: 瓶 | G128: 1000 | H128: 1000 | I128: 1000 | J128: 3000 | M128: 固定单价
A129: 37 | B129: 桃园茶事 | C129: 娃哈哈或同档次以上 | D129: 产品保质期不得少于出厂保质期的三分之二 | E129: 500ml/瓶 | F129: 瓶 | G129: 1000 | H129: 1000 | I129: 800 | J129: 2800 | M129: 固定单价
A130: 38 | B130: 阿萨姆奶茶 | C130: 统一或同档次以上 | D130: 产品保质期不得少于出厂保质期的三分之二 | E130: 500ml/瓶 | F130: 瓶 | G130: 600 | H130: 1000 | I130: 800 | J130: 2400 | M130: 固定单价
A131: 39 | B131: AD钙奶 | C131: 娃哈哈或同档次以上 | D131: 产品保质期不得少于出厂保质期的三分之二 | E131: 220g/瓶 | F131: 瓶 | G131: 600 | H131: 2800 | I131: 2500 | J131: =G131+H131+I131 -> 5900 | M131: 固定单价
A132: 40 | B132: 弱碱苏打水 | C132: 娃哈哈或同档次以上 | D132: 产品保质期不得少于出厂保质期的三分之二 | E132: 500ml/瓶 | F132: 瓶 | G132: 3000 | H132: 1000 | I132: 2000 | J132: 6000 | M132: 固定单价
A133: 41 | B133: 宋柚汁 | C133: 柚香谷或同档次以上 | D133: 产品保质期不得少于出厂保质期的三分之二 | E133: 300g/瓶 | F133: 瓶 | G133: 1500 | H133: 1000 | I133: 1200 | J133: 3700 | M133: 固定单价
A134: 42 | B134: 自在水 | C134: 元气森林或同档次以上 | D134: 产品保质期不得少于出厂保质期的三分之二 | E134: 500ml/瓶 | F134: 瓶 | G134: 300 | H134: 500 | I134: 300 | J134: 1100 | M134: 固定单价
A135: 43 | B135: 每日C果汁 | C135: 味全或同档次以上 | D135: 产品保质期不得少于出厂保质期的三分之二 | E135: 300ml/瓶 | F135: 瓶 | G135: 2000 | H135: 2000 | I135: 2200 | J135: 6200 | M135: 固定单价
A136: 44 | B136: 柠檬茶 | C136: 维他或同档次以上 | D136: 产品保质期不得少于出厂保质期的三分之二 | E136: 250ml/盒 | F136: 盒 | G136: 2000 | H136: 1500 | I136: 1800 | J136: 5300 | M136: 固定单价
A137: 45 | B137: 电解质水 | C137: 元气森林或同档次以上 | D137: 产品保质期不得少于出厂保质期的三分之二 | E137: 500ml/瓶 | F137: 瓶 | G137: 300 | H137: 500 | I137: 500 | J137: 1300 | M137: 固定单价
A138: 46 | B138: 气泡水 | C138: 元气森林或同档次以上 | D138: 产品保质期不得少于出厂保质期的三分之二 | E138: 480ml/瓶 | F138: 瓶 | G138: 500 | H138: 500 | I138: 500 | J138: 1500 | M138: 固定单价
A139: 47 | B139: 佳得乐 | C139: 百事或同档次以上 | D139: 产品保质期不得少于出厂保质期的三分之二 | E139: 600ml/瓶 | F139: 瓶 | G139: 300 | H139: 1000 | I139: 1000 | J139: 2300 | M139: 固定单价
A140: 48 | B140: 功能型饮料 | C140: 尖叫或同档次以上 | D140: 产品保质期不得少于出厂保质期的三分之二 | E140: 550ml/瓶 | F140: 瓶 | G140: 600 | H140: 1200 | I140: 1200 | J140: 3000 | M140: 固定单价
A141: 49 | B141: 功能饮料 | C141: 东鹏或同档次以上 | D141: 产品保质期不得少于出厂保质期的三分之二 | E141: 500ml/瓶 | F141: 瓶 | G141: 300 | H141: 800 | I141: 800 | J141: 1900 | M141: 固定单价
A142: 50 | B142: 汽水 | C142: 大窑或同档次以上 | D142: 产品保质期不得少于出厂保质期的三分之二 | E142: 520ml/瓶 | F142: 瓶 | G142: 300 | H142: 800 | I142: 800 | J142: 1900 | M142: 固定单价
D144: 小菜类
A145: 序号 | B145: 品名 | C145: 参考品牌 | D145: 产品质量要求 | E145: 规格 | F145: 单位 | G145: 西溪 年用量 | H145: 湖滨 年用量 | I145: 钱塘 年用量 | J145: 暂定年用量 | K145: 单价 | L145: 合计金额 | M145: 备注
A146: 1 | B146: 榨菜丝 | C146: 杭帮、金博林或同档次以上 | D146: 产品保质期不得少于出厂保质期的三分之二 | E146: 4.5斤*6包/箱 | F146: 箱 | G146: 50 | H146: 60 | I146: 150 | J146: =G146+H146+I146 -> 260 | M146: 固定单价
A147: 2 | B147: 八宝菜 | C147: 家明或同档次以上 | D147: 产品保质期不得少于出厂保质期的三分之二 | E147: 12kg/箱 | F147: 箱 | G147: 50 | H147: 10 | I147: 150 | J147: 210 | M147: 固定单价
A148: 3 | B148: 八宝酱丁 | C148: 永超或同档次以上 | D148: 产品保质期不得少于出厂保质期的三分之二 | E148: 5㎏/箱 | F148: 箱 | G148: 50 | H148: 10 | I148: 150 | J148: 210 | M148: 固定单价
A149: 4 | B149: 红油酸豆角 | C149: 永超或同档次以上 | D149: 产品保质期不得少于出厂保质期的三分之二 | E149: 4.5㎏/箱 | F149: 箱 | G149: 80 | H149: 10 | I149: 150 | J149: 240 | M149: 固定单价
A150: 5 | B150: 榨菜 | C150: 杭帮或同档次以上 | D150: 产品保质期不得少于出厂保质期的三分之二 | E150: 50g*100包/箱 | F150: 箱 | G150: 1000 | H150: 300 | I150: 1500 | J150: 2800 | M150: 固定单价
A151: 6 | B151: 雪菜王 | C151: 紫云堂或同档次以上 | D151: 产品保质期不得少于出厂保质期的三分之二 | E151: 150g*50包/箱 | F151: 箱 | G151: 400 | H151: 200 | I151: 800 | J151: 1400 | M151: 固定单价
A152: 7 | B152: 台湾酸菜 | D152: 产品保质期不得少于出厂保质期的三分之二 | E152: 3kg/桶 | F152: 桶 | G152: 80 | I152: 200 | J152: 280 | M152: 固定单价
A153: 8 | B153: 酸菜 | C153: 李记乐宝或同档次以上 | D153: 产品保质期不得少于出厂保质期的三分之二 | E153: 250g*40包/箱 | F153: 箱 | G153: 100 | H153: 100 | I153: 150 | J153: =G153+H153+I153 -> 350 | M153: 固定单价
A154: 9 | B154: 小菜【榨菜芯.洋姜等】 | C154: 都市小菜或同档次以上 | D154: 产品保质期不得少于出厂保质期的三分之二 | E154: 25g*200包/箱 | F154: 箱 | G154: 500 | H154: 700 | I154: 900 | J154: 2100 | M154: 固定单价
A155: 10 | B155: 特制肉酥 | C155: 唯新或同档次以上 | D155: 产品保质期不得少于出厂保质期的三分之二 | E155: 500g/袋（50小包） | F155: 袋 | G155: 300 | H155: 300 | I155: 600 | J155: 1200 | M155: 固定单价
A156: 11 | B156: 木糖醇肉酥 | C156: 唯新或同档次以上 | D156: 产品保质期不得少于出厂保质期的三分之二 | E156: 500g/袋（50小包） | F156: 袋 | G156: 100 | H156: 100 | I156: 150 | J156: 350 | M156: 固定单价
A157: 12 | B157: 红油笋丝 | C157: 永超或同档次以上 | D157: 产品保质期不得少于出厂保质期的三分之二 | E157: 5kg/箱 | F157: 箱 | G157: 50 | H157: 50 | I157: 80 | J157: 180 | M157: 固定单价
A158: 13 | B158: 酱瓜 | C158: 永超、豫盛威或同档次以上 | D158: 产品保质期不得少于出厂保质期的三分之二 | E158: 2.5kg/箱 | F158: 箱 | G158: 50 | H158: 50 | I158: 80 | J158: 180 | M158: 固定单价
A159: 14 | B159: 糖蒜 | C159: 泇河小菜或同档次以上 | D159: 产品保质期不得少于出厂保质期的三分之二 | E159: 散称 | F159: 斤 | G159: 100 | H159: 100 | I159: 150 | J159: 350 | M159: 固定单价
A160: 15 | B160: 脆菜心 | C160: 乌江或同档次以上 | D160: 产品保质期不得少于出厂保质期的三分之二 | E160: 500克/包 | F160: 包 | G160: 50 | H160: 50 | I160: 80 | J160: 180 | M160: 固定单价
A161: 16 | B161: 外婆菜 | C161: 湘西或同档次以上 | D161: 产品保质期不得少于出厂保质期的三分之二 | E161: 5kg/箱 | F161: 箱 | G161: 30 | H161: 30 | I161: 50 | J161: 110 | M161: 固定单价
A162: 17 | B162: 榨菜 | C162: 小蒋或同档次以上 | D162: 产品保质期不得少于出厂保质期的三分之二 | E162: 102g*50包/箱 | F162: 箱 | G162: 30 | H162: 30 | I162: 50 | J162: 110 | M162: 固定单价
D164: 干货
A165: 序号 | B165: 品名 | D165: 产品质量要求 | E165: 规格 | F165: 单位 | G165: 西溪 年用量 | H165: 湖滨 年用量 | I165: 钱塘 年用量 | J165: 暂定年用量 | K165: 单价 | L165: 合计金额 | M165: 备注
A166: 1 | B166: 紫菜 | C166: 散装 | D166: 一级，产品保质期不得少于保质期的三分之二 | F166: 斤 | G166: 30 | H166: 20 | I166: 90 | J166: =G166+H166+I166 -> 140 | M166: 固定单价
A167: 2 | B167: 红豆 | C167: 散装 | D167: 一级，产品保质期不得少于保质期的三分之二 | F167: 斤 | G167: 300 | H167: 300 | I167: 1000 | J167: =G167+H167+I167 -> 1600 | M167: 固定单价
A168: 3 | B168: 红枣 | C168: 散装 | D168: 一级，产品保质期不得少于保质期的三分之二 | F168: 斤 | G168: 50 | H168: 60 | I168: 180 | J168: 290 | M168: 固定单价
A169: 4 | B169: 红皮花生米 | C169: 散装 | D169: 一级，产品保质期不得少于保质期的三分之二 | F169: 斤 | G169: 70 | H169: 20 | I169: 200 | J169: 290 | M169: 固定单价
A170: 5 | B170: 花生米 | C170: 散装 | D170: 一级，产品保质期不得少于保质期的三分之二 | F170: 斤 | G170: 600 | H170: 600 | I170: 2000 | J170: 3200 | M170: 固定单价
A171: 6 | B171: 无核干桂圆肉 | C171: 散装 | D171: 一级，产品保质期不得少于保质期的三分之二 | F171: 斤 | G171: 30 | H171: 60 | I171: 90 | J171: 180 | M171: 固定单价
A172: 7 | B172: 无核红枣 | C172: 散装 | D172: 一级，产品保质期不得少于保质期的三分之二 | F172: 斤 | G172: 50 | H172: 200 | I172: 160 | J172: 410 | M172: 固定单价
A173: 8 | B173: 无心莲子 | C173: 散装 | D173: 一级，产品保质期不得少于保质期的三分之二 | F173: 斤 | G173: 50 | H173: 50 | I173: 150 | J173: 250 | M173: 固定单价
A174: 9 | B174: 枸杞 | C174: 散装 | D174: 一级，产品保质期不得少于保质期的三分之二 | F174: 斤 | G174: 20 | H174: 40 | I174: 60 | J174: 120 | M174: 固定单价
A175: 10 | B175: 黑豆 | C175: 散装 | D175: 一级，产品保质期不得少于保质期的三分之二 | F175: 斤 | G175: 200 | H175: 100 | I175: 600 | J175: 900 | M175: 固定单价
A176: 11 | B176: 黑米 | C176: 散装 | D176: 一级，产品保质期不得少于保质期的三分之二 | F176: 斤 | G176: 1200 | H176: 1500 | I176: 3600 | J176: 6300 | M176: 固定单价
A177: 12 | B177: 绿豆 | C177: 散装 | D177: 一级，产品保质期不得少于保质期的三分之二 | F177: 斤 | G177: 200 | H177: 200 | I177: 800 | J177: 1200 | M177: 固定单价
A178: 13 | B178: 脱皮绿豆 | C178: 散装 | D178: 一级，产品保质期不得少于保质期的三分之二 | F178: 斤 | G178: 50 | H178: 50 | I178: 150 | J178: 250 | M178: 固定单价
A179: 14 | B179: 小米 | C179: 散装 | D179: 一级，产品保质期不得少于保质期的三分之二 | F179: 斤 | G179: 1000 | H179: 100 | I179: 1200 | J179: 2300 | M179: 固定单价
A180: 15 | B180: 银耳 | C180: 散装 | D180: 一级，产品保质期不得少于保质期的三分之二 | F180: 斤 | G180: 30 | H180: 30 | I180: 100 | J180: 160 | M180: 固定单价
A181: 16 | B181: 紫米 | C181: 散装 | D181: 一级，产品保质期不得少于保质期的三分之二 | F181: 斤 | G181: 20 | H181: 1000 | I181: 100 | J181: 1120 | M181: 固定单价
A182: 17 | B182: 八宝米 | C182: 散装 | D182: 一级，产品保质期不得少于保质期的三分之二 | F182: 斤 | G182: 150 | H182: 50 | I182: 200 | J182: 400 | M182: 固定单价
A183: 18 | B183: 白芝麻 | C183: 散装 | D183: 一级，产品保质期不得少于保质期的三分之二 | F183: 斤 | G183: 150 | H183: 500 | I183: 500 | J183: 1150 | M183: 固定单价
A184: 19 | B184: 黑芝麻 | C184: 散装 | D184: 一级，产品保质期不得少于保质期的三分之二 | F184: 斤 | G184: 50 | H184: 50 | I184: 200 | J184: 300 | M184: 固定单价
A185: 20 | B185: 腰果 | C185: 散装 | D185: 一级，产品保质期不得少于保质期的三分之二 | F185: 斤 | G185: 30 | H185: 30 | I185: 80 | J185: 140 | M185: 固定单价
A186: 21 | B186: 熟腰果 | C186: 散装 | D186: 一级，产品保质期不得少于保质期的三分之二 | F186: 斤 | G186: 20 | H186: 30 | I186: 100 | J186: 150 | M186: 固定单价
A187: 22 | B187: 干木耳 | C187: 散装 | D187: 一级，产品保质期不得少于保质期的三分之二 | F187: 斤 | G187: 200 | H187: 230 | I187: 800 | J187: 1230 | M187: 固定单价
A188: 23 | B188: 小干木耳 | C188: 散装 | D188: 一级，产品保质期不得少于保质期的三分之二 | F188: 斤 | G188: 30 | H188: 30 | I188: 100 | J188: 160 | M188: 固定单价
A189: 24 | B189: 干香菇 | C189: 散装 | D189: 一级，产品保质期不得少于保质期的三分之二 | F189: 斤 | G189: 300 | H189: 450 | I189: 500 | J189: 1250 | M189: 固定单价
A190: 25 | B190: 干豇豆 | C190: 散装 | D190: 一级，产品保质期不得少于保质期的三分之二 | F190: 斤 | G190: 200 | H190: 450 | I190: 500 | J190: 1150 | M190: 固定单价
A191: 26 | B191: 干茶树菇 | C191: 散装 | D191: 一级，产品保质期不得少于保质期的三分之二 | F191: 斤 | G191: 200 | H191: 200 | I191: 220 | J191: 620 | M191: 固定单价
A192: 27 | B192: 虫草花 | C192: 散装 | D192: 一级，产品保质期不得少于保质期的三分之二 | E192: 350g/包 | F192: 包 | G192: 50 | H192: 50 | I192: 50 | J192: 150 | M192: 固定单价
A193: 28 | B193: 干桑葚 | C193: 散装 | D193: 一级，产品保质期不得少于保质期的三分之二 | F193: 斤 | G193: 15 | H193: 20 | I193: 30 | J193: 65 | M193: 固定单价
A194: 29 | B194: 番薯粉丝 | C194: 散装 | D194: 一级，产品保质期不得少于保质期的三分之二 | F194: 斤 | G194: 600 | H194: 1600 | I194: 2600 | J194: 4800 | M194: 固定单价
A195: 30 | B195: 干粉条 | C195: 散装 | D195: 一级，产品保质期不得少于保质期的三分之二 | F195: 斤 | G195: 200 | H195: 800 | I195: 900 | J195: 1900 | M195: 固定单价
A196: 31 | B196: 米粉干 | C196: 散装 | D196: 一级，产品保质期不得少于保质期的三分之二 | F196: 斤 | G196: 300 | H196: 500 | I196: 600 | J196: 1400 | M196: 固定单价
A197: 32 | B197: 圆饼粉干 | C197: 散装 | D197: 一级，产品保质期不得少于保质期的三分之二 | F197: 斤 | G197: 100 | H197: 500 | I197: 420 | J197: 1020 | M197: 固定单价
A198: 33 | B198: 龙口粉丝 | C198: 散装 | D198: 一级，产品保质期不得少于保质期的三分之二 | E198: 500g/包 | F198: 包 | G198: 50 | H198: 200 | I198: 170 | J198: 420 | M198: 固定单价
A199: 34 | B199: 腐竹 | C199: 散装 | D199: 一级，产品保质期不得少于保质期的三分之二 | F199: 斤 | G199: 300 | H199: 300 | I199: 1200 | J199: =G199+H199+I199 -> 1800 | M199: 固定单价
A200: 35 | B200: 小米粉 | C200: 散装 | D200: 一级，产品保质期不得少于保质期的三分之二 | F200: 斤 | G200: 40 | H200: 50 | I200: 100 | J200: 190 | M200: 固定单价
A201: 36 | B201: 黑米粉 | C201: 散装 | D201: 一级，产品保质期不得少于保质期的三分之二 | F201: 斤 | G201: 50 | H201: 50 | I201: 100 | J201: 200 | M201: 固定单价
A202: 37 | B202: 血糯米 | C202: 散装 | D202: 一级，产品保质期不得少于保质期的三分之二 | E202: 500g/包 | F202: 包 | G202: 30 | H202: 30 | I202: 50 | J202: 110 | M202: 固定单价
A203: 38 | B203: 玉米粉 | C203: 散装 | D203: 一级，产品保质期不得少于保质期的三分之二 | F203: 斤 | G203: 50 | H203: 50 | I203: 60 | J203: 160 | M203: 固定单价
A204: 39 | B204: 临安笋干 | C204: 散装 | D204: 一级，产品保质期不得少于保质期的三分之二 | F204: 斤 | G204: 500 | H204: 600 | I204: 1000 | J204: 2100 | M204: 固定单价
... 191 more rows

Sheet Sheet3
